[Event "DFMMLV 2017"]
[Site "Braunfels"]
[Date "2017.06.18"]
[Round "5"]
[White "Gheng, Simona"]
[Black "Diener, Carolin Valeria"]
[Result "1-0"]
[ECO "C77"]
[WhiteElo "1999"]
[BlackElo "1886"]
[Annotator "NA"]
[PlyCount "83"]
[EventDate "2017.??.??"]
[EventType "team-tourn"]
[EventCountry "GER"]
[SourceTitle "playchess.com"]
[Source "ChessBase"]
[SourceQuality "1"]
[TimeControl "40/5400+30:1800+30"]

{[%evp 21,83,30,37,17,57,47,49,45,35,31,51,45,66,26,32,-28,125,117,105,112,122,121,124,118,123,238,114,122,108,129,138,130,89,22,214,201,204,32767,32767,32767,32767,199,339,328,518,570,647,594,748,32767,716,938,816,954,1009,1212,2591,32767,5261,2777,32767,32767,2722,29974]} 1. e4 {[%emt 0:00:00]} e5 {[%emt 0:00:04]} 2. Nf3 {[%emt 0:00:00]} Nc6 {[%emt 0:00:05]} 3. Bb5 {[%emt 0:00:00]} a6 {[%emt 0:00:04]} 4. Ba4 {[%emt 0:00:00]} Nf6 {[%emt 0:00:07]} 5. d3 {[%emt 0:00:13]} d6 {[%emt 0:00:23]} 6. c3 {[%emt 0:00:08]} Be7 {[%emt 0:00:09]} 7. O-O {[%emt 0:00:08]} O-O {[%emt 0:00:09]} 8. Nbd2 {[%emt 0:00:41]} b5 {[%emt 0:00:42]} 9. Bc2 {[%emt 0:00:14]} Nb8 {[%emt 0:01:59] C77: Ruy Lopez: 3...a6 4 Ba4 Nf6, unusual lines} 10. Re1 {[%emt 0:00:19]} (10. d4 Nbd7 11. Re1 Bb7 12. Nf1 Re8 13. h3 Bf8 14. Bg5 h6 15. Bh4 Qc8 16. dxe5 dxe5 17. N3d2 Nh7 18. Ne3 g6 19. Qf3 Be7 20. Bb3 Bxh4 21. Qxf7+ Kh8 22. Qxg6 Rf8 23. Nf5 Rxf5 24. Qxf5 {1-0 (56) Svidler,P (2755)-Romanov,E (2636) Sochi 2017}) 10... c5 {[%emt 0:01:08]} 11. Nf1 {[%emt 0:00:19]} Qc7 {[%emt 0:01:28]} 12. Ng3 {[%emt 0:00:37]} g6 $146 {[%emt 0:04:23]} ({Predecessor:} 12... Nc6 13. h3 Rd8 14. d4 Bf8 15. Bg5 {1-0 (60) Womacka,M (2439)-Engel,J (2209) Bad Wiessee 2014}) 13. Bh6 {[%emt 0:04:55]} Re8 {[%emt 0:02:58]} 14. h3 {[%emt 0:00:13]} Nbd7 {[%emt 0:06:55]} 15. Qd2 {[%emt 0:03:36]} Nf8 {[%emt 0:02:28]} 16. a4 {[%emt 0:08:40]} Bd7 {[%emt 0:02:31]} 17. axb5 {[%emt 0:06:04]} axb5 {[%emt 0:00:14]} 18. h4 {[%emt 0:01:10]} ({White should play} 18. d4) 18... Nh5 {[%emt 0:05:56]} (18... Rxa1 $11 {remains equal.} 19. Rxa1 Ng4) 19. Nxh5 {[%emt 0:02:50]} gxh5 {[%emt 0:03:12]} 20. Bxf8 {[%emt 0:00:14]} Rxf8 {[%emt 0:01:00]} 21. Qh6 {[%emt 0:00:23]} Bg4 {[%emt 0:00:29]} 22. Ng5 {[%emt 0:02:06]} Bxg5 {[%emt 0:01:06]} 23. Qxg5+ {[%emt 0:03:04]} ({Stronger than} 23. hxg5 Rae8 $11) 23... Kh8 {[%emt 0:00:01]} 24. Qf6+ {[%emt 0:00:08]} Kg8 {[%emt 0:00:02]} 25. f3 {[%emt 0:00:13]} Be6 {[%emt 0:00:52]} 26. Qg5+ {[%emt 0:00:29]} Kh8 {[%emt 0:00:00]} 27. Qxh5 {[%emt 0:00:12]} ({White should play} 27. Rxa8 $16 Rxa8 28. Qxh5) 27... Ra7 $2 {[%emt 0:04:57]} (27... Rxa1 $1 $14 28. Rxa1 Rg8) 28. Qh6 {[%emt 0:02:13]} Rfa8 {[%emt 0:02:28]} 29. Rxa7 {[%emt 0:00:53]} Qxa7 {[%emt 0:00:03]} 30. Qf6+ {[%emt 0:00:12]} Kg8 {[%emt 0:00:05]} 31. h5 {[%emt 0:07:00]} Qb8 {[%emt 0:00:52]} (31... h6 {keeps fighting.} 32. Qxh6 Qe7) 32. h6 {[%emt 0:00:35]} ({Less strong is} 32. Qg5+ Kh8 $18) 32... Qf8 {[%emt 0:00:02]} (32... Kf8 {might work better.} 33. f4 exf4) 33. f4 {[%emt 0:00:22]} exf4 {[%emt 0:04:20]} 34. Rf1 {[%emt 0:00:10]} Ra6 {[%emt 0:07:48]} 35. Rxf4 {[%emt 0:04:42]} d5 {[%emt 0:03:39]} 36. Rf3 {[%emt 0:00:28]} Bg4 {[%emt 0:01:45]} 37. Qxa6 {[%emt 0:00:10]} Bxf3 {[%emt 0:00:08]} 38. gxf3 {[%emt 0:00:04]} f6 {[%emt 0:00:50]} 39. Qe6+ {[%emt 0:00:36]} Kh8 {[%emt 0:00:15]} 40. e5 {[%emt 0:02:14]} Qxh6 {[%emt 0:31:32]} 41. Qxf6+ {[%emt 0:30:04]} Qxf6 {[%emt 0:00:17]} 42. exf6 {[%emt 0:00:03]} 1-0

[Event "DFMMLV 2017"]
[Site "Braunfels"]
[Date "2017.06.18"]
[Round "5"]
[White "Siegl, Melina"]
[Black "Schneider, Birgit"]
[Result "1-0"]
[ECO "B30"]
[WhiteElo "1972"]
[BlackElo "1924"]
[Annotator "NA"]
[PlyCount "77"]
[EventDate "2017.??.??"]
[EventType "team-tourn"]
[EventCountry "GER"]
[SourceTitle "playchess.com"]
[Source "ChessBase"]
[SourceQuality "1"]
[TimeControl "40/5400+30:1800+30"]

{[%evp 9,72,29,22,6,10,0,17,-39,2,-21,-28,-37,-2,0,-6,-2,-4,-12,0,0,10,-16,56,56,32767,89,136,135,153,117,129,124,32767,32767,32767,32767,32767,100,32767,32767,32767,32767,32767,5,32767,32767,11,32767,17,12,32767,32767,266,279,32767,316,351,32767,32767,495,1276,32767,32767,1554,1675]} 1. e4 {[%emt 0:00:00]} c5 {[%emt 0:00:14]} 2. Nf3 {[%emt 0:00:00]} Nc6 {[%emt 0:00:06]} 3. c3 {[%emt 0:01:50]} d5 {[%emt 0:01:03]} 4. exd5 {[%emt 0:00:42]} Qxd5 {[%emt 0:00:27]} 5. Na3 {[%emt 0:03:26]} Nf6 {[%emt 0:06:29] B22: Sicilian: 2 c3} 6. Bc4 {[%emt 0:04:15]} Qd8 {[%emt 0:05:06] LiveBook: 10 Games} 7. O-O {[%emt 0:07:26]} e6 {[%emt 0:04:37]} (7... a6 8. Nc2 Bg4 9. d4 e6 10. h3 Bxf3 11. Qxf3 Rc8 {1-0 (39) Nakamura,H (2776)-Yu,Y (2724) Caleta 2015}) 8. d3 {[%emt 0:02:51]} Be7 {[%emt 0:03:20]} 9. Bf4 {[%emt 0:06:19]} a6 $146 {[%emt 0:06:49]} ({Predecessor:} 9... O-O 10. Bb3 b6 11. Qe2 Bb7 12. Rfd1 {0-1 (49) Palii,A (1859)-Purece,V (1541) Calimanesti Caciulata 2016}) 10. Bb3 {[%emt 0:01:32]} O-O {[%emt 0:02:34]} 11. Nc4 {[%emt 0:04:43]} b5 {[%emt 0:05:43]} 12. Nce5 {[%emt 0:01:44]} Nxe5 {[%emt 0:02:58]} 13. Nxe5 {[%emt 0:00:07]} Bb7 {[%emt 0:03:50]} 14. Qe2 {[%emt 0:00:55]} Bd5 {[%emt 0:07:00]} 15. c4 {[%emt 0:06:28]} bxc4 {[%emt 0:07:43]} (15... Bb7 $11) 16. dxc4 {[%emt 0:00:52]} Be4 {[%emt 0:06:32]} 17. Rfd1 {[%emt 0:02:03]} Qc8 {[%emt 0:06:02]} 18. Ba4 {[%emt 0:15:42]} Ra7 {[%emt 0:08:09]} 19. f3 {[%emt 0:04:42]} Ba8 {[%emt 0:01:40]} 20. Rd3 {[%emt 0:00:34]} Rd8 {[%emt 0:03:31]} 21. Rad1 {[%emt 0:01:05]} Rxd3 {[%emt 0:03:56]} 22. Qxd3 {[%emt 0:00:40]} Bb7 {[%emt 0:04:16]} 23. Nd7 {[%emt 0:10:07]} (23. g4 $18) 23... Bc6 {[%emt 0:03:18]} 24. Nxf6+ {[%emt 0:01:30]} Bxf6 {[%emt 0:01:56]} 25. Bxc6 {[%emt 0:00:24]} Bd4+ {[%emt 0:00:06]} 26. Be3 {[%emt 0:01:05]} Qxc6 {[%emt 0:00:56]} 27. Bxd4 {[%emt 0:00:15]} Rd7 $1 {[%emt 0:01:24]} 28. Qb3 {[%emt 0:00:18]} Qd6 {[%emt 0:01:10]} 29. Qa4 {[%emt 0:07:35]} h6 {[%emt 0:00:29]} 30. b4 {[%emt 0:00:52]} cxd4 {[%emt 0:00:09]} 31. c5 {[%emt 0:00:10]} Qd5 {[%emt 0:00:25]} 32. Qxa6 {[%emt 0:01:30]} d3 {[%emt 0:00:27]} 33. c6 {[%emt 0:04:15]} Qd4+ {[%emt 0:00:07]} 34. Kh1 {[%emt 0:00:34]} Rd5 {[%emt 0:02:04]} (34... Rc7 $142 35. b5 (35. Qxd3 Qxd3 36. Rxd3 Rxc6 $16) 35... Qc4 36. Qa8+ Kh7) 35. c7 {[%emt 0:01:59]} Qf2 {[%emt 0:01:53]} 36. c8=Q+ {[%emt 0:01:02]} Kh7 $18 {[%emt 0:00:07]} 37. Qc1 {[%emt 0:02:20]} d2 {[%emt 0:00:47]} 38. Qc2+ {[%emt 0:00:12]} g6 {[%emt 0:00:46]} 39. Qf1 {[%emt 0:00:10]} 1-0

[Event "DFMMLV 2017"]
[Site "Braunfels"]
[Date "2017.06.18"]
[Round "5"]
[White "Steimbach, Isabel"]
[Black "Winterholler, Christina"]
[Result "0-1"]
[ECO "B01"]
[WhiteElo "1972"]
[BlackElo "2064"]
[Annotator "NA"]
[PlyCount "86"]
[EventDate "2017.??.??"]
[EventType "team-tourn"]
[EventCountry "GER"]
[SourceTitle "playchess.com"]
[Source "ChessBase"]
[SourceQuality "1"]
[TimeControl "40/5400+30:1800+30"]

{[%evp 13,86,70,31,-8,4,-4,-30,-24,4,0,39,36,53,25,41,30,94,89,148,-82,-70,-228,-259,-326,-394,-349,-415,32767,-607,-678,-500,-464,-513,-495,32767,-476,-514,32767,32767,32767,32767,-614,32767,32767,32767,32767,32767,-672,-663,32767,32767,32767,32767,32767,32767,32767,32767,32767,32767,-1053,-1758,32767,-6299,-29993,32767,-1789,-5209,-1189,-6618,32767,-29988,32767,32767,32767,-3764]} 1. e4 {[%emt 0:00:00]} d5 {[%emt 0:02:46]} 2. exd5 {[%emt 0:00:00]} Nf6 {[%emt 0:00:10]} 3. d4 {[%emt 0:00:10]} Nxd5 {[%emt 0:00:10]} 4. c4 {[%emt 0:00:12]} Nb6 {[%emt 0:00:09]} 5. Nf3 {[%emt 0:00:26]} g6 {[%emt 0:00:06]} 6. Be3 {[%emt 0:01:25]} Bg7 {[%emt 0:00:15]} 7. Nc3 {[%emt 0:00:45]} O-O {[%emt 0:01:04] B01: Scandinavian Defence} 8. c5 {[%emt 0:01:23]} (8. Qd2 $14) (8. Be2 Bg4 9. Qb3 Nc6 10. O-O-O Bxf3 11. gxf3 e6 12. h4 a5 13. d5 exd5 14. cxd5 a4 15. Qb5 Na7 16. Qb4 {1-0 (33) Solodovnichenko,Y (2543)-Danin,A (2575) Koge 2013}) 8... Nd5 {[%emt 0:01:32]} 9. Bc4 {[%emt 0:02:59]} Nxe3 {[%emt 0:07:24]} 10. fxe3 {[%emt 0:00:14]} Nc6 {[%emt 0:01:58]} 11. O-O {[%emt 0:01:34]} Bh6 $146 {[%emt 0:11:10]} ({Predecessor:} 11... Bf5 12. a3 e6 13. h3 e5 {1-0 (71) Caporale,G (1787)-Yoshioka,H (1523) Sao Paulo 2013}) 12. Qe2 {[%emt 0:02:15]} Bg4 {[%emt 0:05:46]} 13. h3 {[%emt 0:05:15]} Bxf3 {[%emt 0:06:08]} 14. Rxf3 {[%emt 0:01:49]} e5 {[%emt 0:04:09]} (14... e6 $11) 15. d5 {[%emt 0:01:16]} e4 {[%emt 0:03:25] [#]} (15... Na5 $142) 16. Rg3 $2 {[%emt 0:09:25]} ({Don't do} 16. Nxe4 $6 Ne5 $11) (16. Rxf7 $1 $16 {[%mdl 512] keeps the pressure on.} Kxf7 (16... Rxf7 17. dxc6) 17. dxc6+ Kg7 18. cxb7) 16... Ne5 {[%emt 0:01:04]} 17. Nxe4 $2 {[%emt 0:00:22] [#]} (17. h4 $17) 17... Qh4 $1 {[%emt 0:03:13]} 18. Qc2 {[%emt 0:13:09]} f5 {[%emt 0:05:48]} 19. d6+ {[%emt 0:05:50]} Kh8 {[%emt 0:01:52]} 20. Qc3 {[%emt 0:05:50]} Bg7 {[%emt 0:00:54]} ({And not} 20... fxe4 21. Qxe5+ Bg7 22. Qg5 $16) 21. Qe1 {[%emt 0:08:26]} Qxe4 {[%emt 0:04:59]} 22. Bb3 {[%emt 0:01:25]} cxd6 {[%emt 0:03:30]} 23. cxd6 {[%emt 0:02:03]} Rad8 {[%emt 0:05:25]} 24. Rd1 {[%emt 0:01:24]} Nd3 {[%emt 0:03:09]} 25. Qa5 {[%emt 0:05:51]} Rxd6 {[%emt 0:00:53]} 26. Rf3 {[%emt 0:03:29]} Rfd8 {[%emt 0:03:22]} 27. Bc2 {[%emt 0:01:27]} Qe7 {[%emt 0:03:34]} 28. Qxa7 {[%emt 0:04:01]} Ra6 {[%emt 0:01:27]} 29. Qxa6 {[%emt 0:01:03]} bxa6 {[%emt 0:00:01]} 30. Rxd3 {[%emt 0:00:39]} Rxd3 {[%emt 0:01:14]} 31. Bxd3 {[%emt 0:00:05]} Qd6 {[%emt 0:00:39]} 32. Bc4 {[%emt 0:03:03]} Bxb2 {[%emt 0:00:57]} 33. Bb3 {[%emt 0:00:31]} Qc5 {[%emt 0:00:49]} 34. Kf2 {[%emt 0:01:57]} Bc1 {[%emt 0:00:37]} 35. Ke2 {[%emt 0:01:17]} Qc3 {[%emt 0:00:30]} 36. Kf2 {[%emt 0:00:19]} Qd2+ {[%emt 0:00:29]} 37. Kg3 {[%emt 0:01:26]} Qe1+ {[%emt 0:00:15]} (37... Ba3 $142 38. Rf1 Qxe3+ 39. Kh2 Bd6+ 40. Kh1 Qg3 41. Kg1 Qh2+ 42. Kf2 Qf4+ 43. Ke2 Qe4+ 44. Kd1 Qd3+ 45. Ke1 Qe3+ 46. Kd1 Bb4 47. Rf2 Qxf2 48. Kc1 Qd2+ 49. Kb1 Ba3 50. h4 Qc1#) 38. Kf4 {[%emt 0:00:29]} Qh4+ {[%emt 0:05:31]} 39. g4 {[%emt 0:02:31]} h5 {[%emt 0:00:38]} (39... Ba3 $142 40. e4 Qe1 41. Re3 Bc1 42. gxf5 Qxe3+ 43. Ke5 gxf5 44. Kxf5 Qf4+ 45. Ke6 Qxe4+ 46. Kd6 Bf4+ 47. Kc5 Qd3 48. Bf7 Qd6+ 49. Kc4 Qc7+ 50. Kd4 Qxf7 51. a4 Qd7+ 52. Ke4 Qd2 53. a5 Kg7 54. Kf3 Qe3+ 55. Kg2 h5 56. Kf1 Bg3 57. Kg2 Qf2+ 58. Kh1 Qh2#) 40. Ke5 {[%emt 0:02:16]} Qe7+ {[%emt 0:34:18]} 41. Kf4 {[%emt 0:31:50]} Qe4+ {[%emt 0:00:47]} 42. Kg3 {[%emt 0:00:30]} hxg4 {[%emt 0:00:45]} 43. hxg4 {[%emt 0:00:48]} Qxg4+ $19 {[%emt 0:01:05]} 0-1

[Event "DFMMLV 2017"]
[Site "Braunfels"]
[Date "2017.06.18"]
[Round "5"]
[White "Zimmer, Elke"]
[Black "Hielscher, Ursula"]
[Result "1/2-1/2"]
[ECO "D00"]
[WhiteElo "1951"]
[BlackElo "1835"]
[Annotator "NA RC"]
[PlyCount "123"]
[EventDate "2017.??.??"]
[EventType "team-tourn"]
[EventCountry "GER"]
[SourceTitle "playchess.com"]
[Source "ChessBase"]
[SourceQuality "1"]
[TimeControl "40/5400+30:1800+30"]

{[%evp 13,123,0,13,2,1,0,7,-15,-1,-18,11,-31,9,5,32,-27,-30,-36,-35,-59,-25,-18,32767,-29,-28,-267,-272,-288,32767,-299,-300,-301,-303,-320,32767,32767,32767,32767,32767,32767,32767,-378,32767,32767,32767,32767,-283,32767,32767,32767,-207,32767,-11,0,32767,32767,110,72,100,111,209,32767,32767,31,56,32767,32767,22,32767,32767,32767,32767,32767,32767,32767,32767,124,110,32767,32767,32767,42,31,0,0,0,44,0,113,103,111,99,108,103,108,84,102,65,32767,32767,69,32767,32767,32767,50,32767,0,0,0,0,0,0]} 1. d4 {[%emt 0:00:00]} d5 {[%emt 0:00:11]} 2. Bf4 {[%emt 0:00:00]} Nf6 {[%emt 0:00:10]} 3. e3 {[%emt 0:00:00]} Bf5 {[%emt 0:00:28]} 4. Bd3 {[%emt 0:00:50]} Bxd3 {[%emt 0:00:09] D00: 1 d4 d5: Unusual lines} 5. Qxd3 {[%emt 0:00:06]} c6 {[%emt 0:00:19]} 6. Nd2 {[%emt 0:01:11]} e6 {[%emt 0:00:39]} 7. Ne2 {[%emt 0:09:12]} (7. Ngf3 Be7 8. O-O O-O 9. h3 Nbd7 10. a4 c5 11. a5 c4 12. Qe2 b5 13. axb6 axb6 14. Ne5 Nxe5 15. dxe5 {1-0 (45) Carlsen,M (2855)-Giri,A (2785) Bilbao 2016}) 7... Nbd7 {[%emt 0:01:14]} 8. c3 $146 {[%emt 0:06:23]} ({Predecessor:} 8. O-O Nb6 9. e4 dxe4 10. Nxe4 Nxe4 11. Qxe4 Bd6 12. Bxd6 Qxd6 {0-1 (28) Ziukaite,I-Kadusauskas,J (1367) Kaunas 2015}) 8... Be7 {[%emt 0:04:21]} 9. h3 {[%emt 0:00:32]} O-O {[%emt 0:05:46]} 10. g4 {[%emt 0:04:30]} Ne8 {[%emt 0:03:05]} 11. Nf3 {[%emt 0:07:30]} Bd6 {[%emt 0:12:11]} 12. h4 {[%emt 0:12:35]} Bxf4 {[%emt 0:02:28]} 13. Nxf4 {[%emt 0:00:11]} Qc7 {[%emt 0:01:39]} 14. Ng5 {[%emt 0:08:17]} Nef6 {[%emt 0:02:28]} 15. O-O-O {[%emt 0:10:41]} Rfe8 {[%emt 0:02:31]} 16. Nh5 {[%emt 0:02:44]} e5 {[%emt 0:04:40]} 17. Qf5 {[%emt 0:08:24]} Qd6 {[%emt 0:08:19]} 18. Nxf6+ {[%emt 0:03:56]} Nxf6 {[%emt 0:03:04]} 19. Nxf7 $2 {[%emt 0:02:30]} (19. h5 $11 {and White has nothing to worry.}) 19... Kxf7 {[%emt 0:02:47]} 20. g5 {[%emt 0:00:05]} Qe6 {[%emt 0:01:06]} 21. Qf3 $2 {[%emt 0:02:42]} (21. Qxe6+ $11 Rxe6 22. gxf6) 21... Qg4 {[%emt 0:01:40]} 22. Rh3 {[%emt 0:03:32]} e4 {[%emt 0:00:17]} 23. Qh1 {[%emt 0:01:02]} Nd7 {[%emt 0:06:36]} 24. Rg3 {[%emt 0:01:05]} Qe6 {[%emt 0:03:01]} 25. g6+ {[%emt 0:02:09]} hxg6 {[%emt 0:04:56]} 26. Rdg1 {[%emt 0:02:09]} Rh8 {[%emt 0:02:00]} 27. Qg2 {[%emt 0:01:39]} Nf8 {[%emt 0:03:20]} 28. Rg4 {[%emt 0:00:16]} Ke7 {[%emt 0:01:38]} 29. Qg3 {[%emt 0:00:26]} Qd6 {[%emt 0:02:46]} 30. Rf4 {[%emt 0:00:06]} Qe6 {[%emt 0:03:36]} 31. f3 {[%emt 0:01:59]} Kd7 {[%emt 0:02:52]} 32. fxe4 {[%emt 0:00:15]} dxe4 $2 {[%emt 0:00:55]} ({Black should play} 32... Re8 $19 33. e5 Kc8) 33. Rgf1 {[%emt 0:00:19]} Re8 {[%emt 0:00:55]} 34. Rf7+ {[%emt 0:00:11]} Re7 {[%emt 0:03:03]} 35. Rxf8 {[%emt 0:00:42]} Rxf8 {[%emt 0:00:06]} 36. Rxf8 {[%emt 0:00:05]} Rf7 {[%emt 0:02:45]} (36... Re8 $16 37. Rf4 Qxa2) 37. Rxf7+ {[%emt 0:01:37]} Qxf7 {[%emt 0:00:02]} 38. Qg4+ {[%emt 0:00:08]} Qf5 {[%emt 0:00:53]} (38... Qe6 $5 {[%cal Re6g4]} 39. Qg3 Qf5 $14) 39. Qf4 {[%emt 0:00:43]} Qd5 {[%emt 0:06:09]} 40. b3 {[%emt 0:00:34]} (40. Qf8 $5 {[%cal Rf8g7]}) 40... Qa5 {[%emt 0:31:28]} 41. Qf7+ {[%emt 0:31:17]} Kc8 {[%emt 0:01:49]} 42. Qf8+ {[%emt 0:00:13]} Kd7 {[%emt 0:00:23]} 43. Qxg7+ {[%emt 0:00:08]} Kc8 {[%emt 0:00:13]} 44. Qf8+ {[%emt 0:01:16]} Kd7 {[%emt 0:00:18]} 45. Qf7+ {[%emt 0:00:06]} Kd8 {[%emt 0:00:58]} 46. Kb2 {[%emt 0:00:16]} Qh5 $1 $11 {[%emt 0:01:13] remains equal.} 47. Qf8+ $2 {[%emt 0:01:02]} (47. Qxb7 $18 Qxh4 48. Qb8+ Kd7 49. Qxa7+ Kc8 50. Qf7) 47... Kd7 {[%emt 0:00:55]} 48. Qg7+ {[%emt 0:00:26]} Kc8 $1 {[%emt 0:00:30]} 49. Qf8+ {[%emt 0:01:01]} Kd7 {[%emt 0:00:23]} 50. Qf7+ {[%emt 0:00:04]} Kc8 {[%emt 0:01:07]} 51. Qe6+ {[%emt 0:00:42]} Kc7 {[%emt 0:00:37]} 52. Qxe4 {[%emt 0:04:56]} Qe2+ {[%emt 0:00:17] [#]} 53. Qc2 $1 {[%emt 0:00:05]} Qxe3 {[%emt 0:00:21]} 54. Qh2+ {[%emt 0:00:38]} Kd7 {[%emt 0:01:20]} 55. a4 {[%emt 0:00:36]} a5 {[%emt 0:00:00]} 56. Qg2 {[%emt 0:00:00]} Qe6 {[%emt 0:00:00]} 57. c4 {[%emt 0:00:00]} Qf6 {[%emt 0:00:00]} 58. Qg4+ {[%emt 0:00:00]} Kc7 {[%emt 0:00:00]} 59. Qe4 {[%emt 0:00:00]} Qf2+ {[%emt 0:00:00]} 60. Kc3 {[%emt 0:00:00]} Qg3+ {[%emt 0:00:00]} 61. Qd3 {[%emt 0:00:00]} (61. Kc2 $5 {[%cal Re4e5]} Qf2+ 62. Kd1 $11) 61... Qe1+ {[%emt 0:00:00]} 62. Kc2 $11 {[%emt 0:00:00]} (62. Qd2 $5 {[%cal Rd2e1]} Qa1+ 63. Kd3 $11) 1/2-1/2

[Event "DFMMLV 2017"]
[Site "Braunfels"]
[Date "2017.06.18"]
[Round "5"]
[White "Bakalarz, Grazyna"]
[Black "Fuchs, Antje"]
[Result "1-0"]
[ECO "A48"]
[WhiteElo "1946"]
[BlackElo "2052"]
[Annotator "NA RC"]
[PlyCount "139"]
[EventDate "2017.??.??"]
[EventType "team-tourn"]
[EventCountry "GER"]
[SourceTitle "playchess.com"]
[Source "ChessBase"]
[SourceQuality "1"]
[TimeControl "40/5400+30:1800+30"]

{[%evp 14,130,27,0,0,0,8,0,79,39,90,55,65,70,72,52,56,57,71,55,74,75,100,95,85,69,86,84,89,85,88,87,92,74,86,81,32767,72,79,32767,79,32767,32767,27,40,35,32767,32767,32767,32767,32767,32767,32767,32767,32767,32767,32767,32767,32767,32767,32767,18,32767,77,135,58,66,72,32767,32767,32767,50,32767,72,32767,97,32767,127,143,64,32767,21,63,0,0,0,115,0,320,343,371,467,329,385,416,432,418,329,372,422,32767,32767,32767,32767,1150,32767,539,32767,1308,1334,1166,498,345,545,614,868,995,1076,1264]} 1. d4 {[%emt 0:00:00]} Nf6 {[%emt 0:00:29]} 2. Nf3 {[%emt 0:00:00]} g6 {[%emt 0:00:19]} 3. Bf4 {[%emt 0:00:00]} Bg7 {[%emt 0:00:19]} 4. e3 {[%emt 0:00:03]} d6 {[%emt 0:01:14]} 5. Be2 {[%emt 0:00:13]} Nh5 {[%emt 0:00:42] A48: 1 d4 Nf6 2 Nf3 g6: Torre, London and Colle Systems} (5... O-O 6. h3 Nc6 7. Nc3 Qe8 8. d5 Nb8 9. e4 e5 10. Bc1 Nh5 11. Nd2 f5 12. exf5 Nf4 13. f6 Qf7 14. Nde4 Bxf6 {1-0 (46) Savchenko,B (2636)-Kovchan,A (2577) Skopje 2017}) 6. Bg5 {[%emt 0:00:28]} c5 {[%emt 0:02:18]} 7. c3 {[%emt 0:00:38]} Qb6 {[%emt 0:01:32]} 8. Qb3 $146 {[%emt 0:04:10]} ({Predecessor:} 8. Qc1 h6 9. Bh4 Nc6 10. Na3 Bf5 11. O-O g5 12. Nd2 Bg6 13. Ndc4 {1-0 (37) Stepanov,N (1774)-Shakirov,R (2148) Kazan 2008}) 8... Qxb3 {[%emt 0:00:42]} 9. axb3 {[%emt 0:00:06]} h6 {[%emt 0:00:54]} 10. Bh4 {[%emt 0:00:52]} Bf5 {[%emt 0:04:00]} (10... g5 $11 {keeps the balance.} 11. Bg3 Be6) 11. Nfd2 {[%emt 0:06:52]} Nf6 {[%emt 0:00:29]} 12. Na3 {[%emt 0:03:35]} cxd4 {[%emt 0:06:59]} 13. exd4 {[%emt 0:02:20]} O-O {[%emt 0:02:44]} 14. Nb5 {[%emt 0:01:41]} (14. Bxf6 $5 Bxf6 15. Nac4 $11) 14... Nc6 {[%emt 0:08:18]} 15. Bxf6 {[%emt 0:07:21]} Bxf6 {[%emt 0:00:10]} 16. Nc7 {[%emt 0:02:23]} Rac8 {[%emt 0:03:22]} 17. Nd5 {[%emt 0:00:27]} a6 {[%emt 0:12:52]} 18. Nxf6+ {[%emt 0:05:52]} exf6 {[%emt 0:00:05]} 19. O-O {[%emt 0:02:48]} Kg7 {[%emt 0:03:44]} 20. Nc4 {[%emt 0:03:02]} Rcd8 {[%emt 0:01:29]} 21. b4 {[%emt 0:04:52]} Rfe8 {[%emt 0:01:07]} 22. Ne3 {[%emt 0:00:17]} Bc8 {[%emt 0:02:33]} 23. b5 {[%emt 0:02:58]} axb5 {[%emt 0:04:12]} 24. Bxb5 {[%emt 0:00:44]} Bd7 {[%emt 0:00:25]} 25. Bd3 {[%emt 0:05:10]} f5 {[%emt 0:04:54]} 26. Nd5 {[%emt 0:03:15]} Be6 {[%emt 0:05:01]} 27. Nc7 {[%emt 0:08:46]} Re7 {[%emt 0:00:15]} 28. Nb5 {[%emt 0:02:35]} Bd5 {[%emt 0:02:50]} 29. Rfe1 {[%emt 0:02:12]} Be4 {[%emt 0:02:30]} 30. Bf1 {[%emt 0:07:22]} f4 {[%emt 0:01:41]} 31. f3 {[%emt 0:03:05]} Bc2 {[%emt 0:04:10]} 32. Rxe7 {[%emt 0:01:16]} Nxe7 {[%emt 0:00:06]} 33. Ra7 {[%emt 0:06:40]} Rd7 {[%emt 0:01:06]} 34. g3 {[%emt 0:00:30]} fxg3 {[%emt 0:02:56]} 35. hxg3 {[%emt 0:00:42]} d5 {[%emt 0:02:04]} 36. Kf2 {[%emt 0:01:48]} Nc6 {[%emt 0:00:26]} 37. Ra8 {[%emt 0:01:39]} Re7 {[%emt 0:00:39]} 38. Nd6 {[%emt 0:02:15]} f6 {[%emt 0:05:47]} 39. Ra3 {[%emt 0:03:15]} (39. Re8 $16) 39... Rd7 {[%emt 0:03:37]} 40. Nc8 {[%emt 0:01:43]} h5 {[%emt 0:35:10]} 41. Bh3 {[%emt 0:32:28]} Rd8 {[%emt 0:01:19]} 42. Nb6 {[%emt 0:00:43]} Rd6 {[%emt 0:02:12]} 43. Na8 {[%emt 0:00:00]} Bd3 {[%emt 0:00:00]} 44. Ke3 {[%emt 0:00:00]} Bb1 {[%emt 0:00:00]} 45. Nc7 {[%emt 0:00:00]} Kf7 {[%emt 0:00:00]} 46. Ra8 {[%emt 0:00:00]} (46. Rb3 $16) 46... Ne7 {[%emt 0:00:00]} 47. Ra5 {[%emt 0:00:00]} Rb6 {[%emt 0:00:00]} 48. b4 {[%emt 0:00:00]} Rc6 {[%emt 0:00:00]} 49. Rc5 {[%emt 0:00:00]} Ba2 {[%emt 0:00:00]} (49... Bf5 $11 50. Bf1 Rd6) 50. b5 {[%emt 0:00:23]} (50. Bd7 $16) 50... Rxc5 $4 {[%emt 0:00:00]} (50... Rd6 $11 51. Na8 Bc4) 51. dxc5 {[%emt 0:00:02]} g5 {[%emt 0:00:00]} 52. Be6+ {[%emt 0:02:10]} Kg6 {[%emt 0:00:00]} 53. b6 {[%emt 0:01:25]} h4 {[%emt 0:00:00]} 54. gxh4 {[%emt 0:00:05]} gxh4 {[%emt 0:00:00]} 55. Kf4 {[%emt 0:01:10]} f5 {[%emt 0:00:00]} 56. Bd7 {[%emt 0:00:53]} Kf6 {[%emt 0:00:00]} 57. c6 {[%emt 0:00:54]} Ng6+ {[%emt 0:00:00]} 58. Ke3 {[%emt 0:00:10]} h3 {[%emt 0:00:00]} (58... Ne5 $142 59. Be8 Nc4+ 60. Kf4 Na5 61. cxb7 Nxb7) 59. cxb7 {[%emt 0:00:36]} h2 {[%emt 0:00:19]} 60. b8=Q {[%emt 0:00:18]} d4+ {[%emt 0:02:26]} (60... h1=Q $142 61. Ne8+ Kf7) 61. Kxd4 {[%emt 0:00:57]} h1=Q {[%emt 0:00:11]} 62. Nd5+ {[%emt 0:01:31]} (62. Ne8+ $142 Kf7 63. Nd6+ Kg7 64. Nxf5+ Kh7 65. Bb5 Qg1+ 66. Ne3) 62... Bxd5 {[%emt 0:01:01]} 63. Qd6+ {[%emt 0:00:18]} ({Weaker is} 63. Kxd5 Qxf3+ 64. Kd4 Qe4+ 65. Kc5 Qe3+ 66. Kb4 Qe7+ 67. Kb3 Qf7+ 68. Kc2 Qxd7 $11) 63... Kg7 {[%emt 0:01:20]} 64. Kxd5 {[%emt 0:00:22]} Qxf3+ {[%emt 0:00:24]} 65. Kc4 {[%emt 0:00:47]} Qe4+ $18 {[%emt 0:01:34]} 66. Kb5 {[%emt 0:00:58]} Ne5 {[%emt 0:01:42]} 67. Qe7+ {[%emt 0:00:38]} Kh6 {[%emt 0:00:36]} 68. Qf6+ {[%emt 0:00:10]} Ng6 {[%emt 0:00:22]} 69. Bxf5 {[%emt 0:00:25]} Qd5+ {[%emt 0:00:16]} 70. Kb4 {[%emt 0:00:33]} 1-0